[Event "Titled Tuesday Blitz May 9 Late 2023"]
[White "Harish, Neeraj"]
[Black "Hnydiuk, Aleksander"]
[WhiteFideId "30958130"]
[BlackFideId "1109057"]
[WhiteElo "1879"]
[BlackElo "2374"]
[Result "1-0"]
[Round "01"]
[TimeControl "180+2"]
[Date "2023.05.09"]
[WhiteClock "0:00:07"]
[BlackClock "0:00:06"]

1. e4 {[%clk 0:02:57]}  Nf6 {[%clk 0:02:58]} 2. e5 {[%clk 0:02:53]}  Nd5 {[%clk 0:02:58]} 3. c4 {[%clk 0:02:54]}  Nb6 {[%clk 0:02:58]} 4. d4 {[%clk 0:02:51]}  d6 {[%clk 0:02:58]} 5. exd6 {[%clk 0:02:49]}  exd6 {[%clk 0:02:59]} 6. Bd3 {[%clk 0:02:45]}  Be7 {[%clk 0:02:58]} 7. Nf3 {[%clk 0:02:45]}  Bg4 {[%clk 0:02:57]} 8. h3 {[%clk 0:02:32]}  Bh5 {[%clk 0:02:56]} 9. Be3 {[%clk 0:02:26]}  Nc6 {[%clk 0:02:54]} 10. Nc3 {[%clk 0:02:18]}  O-O {[%clk 0:02:53]} 11. O-O {[%clk 0:02:08]}  Bf6 {[%clk 0:02:52]} 12. Be2 {[%clk 0:01:31]}  Bxf3 {[%clk 0:02:49]} 13. Bxf3 {[%clk 0:01:31]}  Nxc4 {[%clk 0:02:49]} 14. Qc2 {[%clk 0:01:17]}  Re8 {[%clk 0:02:43]} 15. Rfe1 {[%clk 0:01:12]}  Nxe3 {[%clk 0:02:27]} 16. fxe3 {[%clk 0:01:12]}  Bg5 {[%clk 0:02:14]} 17. Qf2 {[%clk 0:00:52]}  Qd7 {[%clk 0:01:59]} 18. e4 {[%clk 0:00:47]}  Bf6 {[%clk 0:01:53]} 19. Rad1 {[%clk 0:00:46]}  Be7 {[%clk 0:01:32]} 20. Nd5 {[%clk 0:00:39]}  Bf8 {[%clk 0:01:29]} 21. Bg4 {[%clk 0:00:31]}  Qd8 {[%clk 0:01:27]} 22. Rf1 {[%clk 0:00:24]}  f6 {[%clk 0:01:26]} 23. Rfe1 {[%clk 0:00:22]}  Nb8 {[%clk 0:01:18]} 24. Nf4 {[%clk 0:00:20]}  c6 {[%clk 0:01:13]} 25. d5 {[%clk 0:00:17]}  Nd7 {[%clk 0:01:10]} 26. Bxd7 {[%clk 0:00:17]}  Qxd7 {[%clk 0:01:10]} 27. Ne6 {[%clk 0:00:18]}  Rxe6 {[%clk 0:01:08]} 28. dxe6 {[%clk 0:00:19]}  Qxe6 {[%clk 0:01:08]} 29. Qg3 {[%clk 0:00:19]}  Re8 {[%clk 0:01:07]} 30. a3 {[%clk 0:00:15]}  g6 {[%clk 0:01:02]} 31. Qc3 {[%clk 0:00:14]}  Bh6 {[%clk 0:00:52]} 32. Qa5 {[%clk 0:00:13]}  a6 {[%clk 0:00:50]} 33. Qb4 {[%clk 0:00:12]}  Qe7 {[%clk 0:00:31]} 34. Qxd6 {[%clk 0:00:11]}  Qf7 {[%clk 0:00:18]} 35. Rf1 {[%clk 0:00:07]}  Bg7 {[%clk 0:00:16]} 36. Qd7 {[%clk 0:00:07]}  Re7 {[%clk 0:00:16]} 37. Qd8+ {[%clk 0:00:07]}  Re8 {[%clk 0:00:16]} 38. Qd7 {[%clk 0:00:07]}  Re7 {[%clk 0:00:14]} 39. Qd3 {[%clk 0:00:06]}  h5 {[%clk 0:00:13]} 40. Qf3 {[%clk 0:00:06]}  Qe6 {[%clk 0:00:13]} 41. Rfe1 {[%clk 0:00:03]}  Qe5 {[%clk 0:00:12]} 42. Qd3 {[%clk 0:00:03]}  Kh7 {[%clk 0:00:12]} 43. Qb3 {[%clk 0:00:03]}  b5 {[%clk 0:00:11]} 44. Qc3 {[%clk 0:00:02]}  Qe6 {[%clk 0:00:10]} 45. Qb4 {[%clk 0:00:02]}  Bh6 {[%clk 0:00:07]} 46. Rd6 {[%clk 0:00:02]}  Qf7 {[%clk 0:00:07]} 47. Rxc6 {[%clk 0:00:02]}  Bf4 {[%clk 0:00:06]} 48. Qc3 {[%clk 0:00:02]}  Be5 {[%clk 0:00:06]} 49. Qe3 {[%clk 0:00:02]}  Rd7 {[%clk 0:00:06]} 50. Qf3 {[%clk 0:00:02]}  Bd4+ {[%clk 0:00:06]} 51. Kh1 {[%clk 0:00:03]}  Be5 {[%clk 0:00:06]} 52. Rec1 {[%clk 0:00:02]}  Qe7 {[%clk 0:00:06]} 53. Rc8 {[%clk 0:00:01]}  Bc7 {[%clk 0:00:04]} 54. Qb3 {[%clk 0:00:02]}  Qf7 {[%clk 0:00:01]} 55. Qxf7+ {[%clk 0:00:02]}  Rxf7 {[%clk 0:00:02]} 56. R1xc7 {[%clk 0:00:01]}  Rxc7 {[%clk 0:00:03]} 57. Rxc7+ {[%clk 0:00:02]}  Kh6 {[%clk 0:00:03]} 58. Ra7 {[%clk 0:00:02]}  Kg5 {[%clk 0:00:04]} 59. Rxa6 {[%clk 0:00:03]}  Kf4 {[%clk 0:00:05]} 60. Rb6 {[%clk 0:00:04]}  Kxe4 {[%clk 0:00:05]} 61. Rxb5 {[%clk 0:00:05]}  f5 {[%clk 0:00:05]} 62. Rb6 {[%clk 0:00:06]}  f4 {[%clk 0:00:05]} 63. a4 {[%clk 0:00:07]}  f3 {[%clk 0:00:06]} 64. a5 {[%clk 0:00:08]}  f2 {[%clk 0:00:07]} 65. Rf6 {[%clk 0:00:07]}  Ke3 {[%clk 0:00:07]} 66. g3 {[%clk 0:00:07]}  g5 {[%clk 0:00:06]} 67. Kg2 {[%clk 0:00:07]}  g4 {[%clk 0:00:07]} 68. hxg4 {[%clk 0:00:06]}  hxg4 {[%clk 0:00:06]} 69. Rxf2 {[%clk 0:00:07]} 1-0


[Site "https://www.chess.com"]

[Event "Titled Tuesday Blitz May 9 Late 2023"]
[White "Ibadov, Dashgyn"]
[Black "Semenenko, Dmytry"]
[WhiteFideId "24107514"]
[BlackFideId "14118645"]
[WhiteElo "2208"]
[BlackElo "2113"]
[Result "1-0"]
[Round "01"]
[TimeControl "180+2"]
[Date "2023.05.09"]
[WhiteClock "0:00:21"]
[BlackClock "0:00:04"]

1. e4 {[%clk 0:02:59]}  Nf6 {[%clk 0:02:59]} 2. e5 {[%clk 0:02:58]}  Nd5 {[%clk 0:02:59]} 3. d4 {[%clk 0:02:59]}  d6 {[%clk 0:02:58]} 4. c4 {[%clk 0:02:59]}  Nb6 {[%clk 0:02:57]} 5. f4 {[%clk 0:03:00]}  dxe5 {[%clk 0:02:57]} 6. fxe5 {[%clk 0:03:00]}  Nc6 {[%clk 0:02:58]} 7. Be3 {[%clk 0:03:00]}  Bf5 {[%clk 0:02:58]} 8. Nc3 {[%clk 0:02:59]}  e6 {[%clk 0:02:58]} 9. Nf3 {[%clk 0:02:59]}  Bg4 {[%clk 0:02:58]} 10. Be2 {[%clk 0:02:52]}  Bxf3 {[%clk 0:02:57]} 11. gxf3 {[%clk 0:02:53]}  Qh4+ {[%clk 0:02:57]} 12. Bf2 {[%clk 0:02:53]}  Qf4 {[%clk 0:02:57]} 13. Qd2 {[%clk 0:02:52]}  Qxd2+ {[%clk 0:02:57]} 14. Kxd2 {[%clk 0:02:51]}  O-O-O {[%clk 0:02:57]} 15. d5 {[%clk 0:02:18]}  exd5 {[%clk 0:02:45]} 16. cxd5 {[%clk 0:02:18]}  Nxd5 {[%clk 0:02:44]} 17. Kc2 {[%clk 0:02:10]}  Nxc3 {[%clk 0:02:36]} 18. bxc3 {[%clk 0:02:11]}  Nxe5 {[%clk 0:02:32]} 19. f4 {[%clk 0:02:09]}  Nc6 {[%clk 0:02:29]} 20. Rhg1 {[%clk 0:02:02]}  g6 {[%clk 0:02:20]} 21. f5 {[%clk 0:02:01]}  Bd6 {[%clk 0:02:17]} 22. h4 {[%clk 0:01:56]}  Rhe8 {[%clk 0:02:12]} 23. Bg4 {[%clk 0:01:50]}  Ne5 {[%clk 0:01:58]} 24. Be2 {[%clk 0:01:37]}  gxf5 {[%clk 0:01:51]} 25. Bd4 {[%clk 0:01:38]}  Ng4 {[%clk 0:01:42]} 26. Bd3 {[%clk 0:01:38]}  Ne3+ {[%clk 0:01:36]} 27. Kd2 {[%clk 0:01:37]}  Bf4 {[%clk 0:01:32]} 28. Rg7 {[%clk 0:01:26]}  c5 {[%clk 0:01:10]} 29. Bxc5 {[%clk 0:01:14]}  Rd5 {[%clk 0:00:58]} 30. Bd4 {[%clk 0:01:11]}  Re7 {[%clk 0:00:32]} 31. Rxh7 {[%clk 0:01:07]}  Ng4+ {[%clk 0:00:27]} 32. Kc2 {[%clk 0:01:05]}  b6 {[%clk 0:00:18]} 33. h5 {[%clk 0:00:51]}  Kb7 {[%clk 0:00:16]} 34. Rf1 {[%clk 0:00:45]}  Be3 {[%clk 0:00:13]} 35. Bxf5 {[%clk 0:00:26]}  Bxd4 {[%clk 0:00:12]} 36. Bxg4 {[%clk 0:00:25]}  Rc7 {[%clk 0:00:11]} 37. Rfxf7 {[%clk 0:00:24]}  Be5 {[%clk 0:00:09]} 38. Rxc7+ {[%clk 0:00:21]}  Bxc7 {[%clk 0:00:04]} 39. Bf3 {[%clk 0:00:21]} 1-0


[Site "https://www.chess.com"]

[Event "Titled Tuesday Blitz May 9 Late 2023"]
[White "Rodriguez Santiago, Jaime"]
[Black "Nikologorskiy, Konstantin"]
[WhiteFideId "3100898"]
[BlackFideId "24111708"]
[WhiteElo "2025"]
[BlackElo "2273"]
[Result "0-1"]
[Round "01"]
[TimeControl "180+2"]
[Date "2023.05.09"]
[WhiteClock "0:00:45"]
[BlackClock "0:01:58"]

1. c4 {[%clk 0:02:59]}  e5 {[%clk 0:02:58]} 2. Nc3 {[%clk 0:02:59]}  Bb4 {[%clk 0:02:58]} 3. g3 {[%clk 0:02:58]}  Bxc3 {[%clk 0:02:58]} 4. dxc3 {[%clk 0:02:57]}  Nc6 {[%clk 0:02:59]} 5. e4 {[%clk 0:02:57]}  d6 {[%clk 0:02:59]} 6. f3 {[%clk 0:02:55]}  Nge7 {[%clk 0:02:58]} 7. Nh3 {[%clk 0:02:55]}  Be6 {[%clk 0:02:58]} 8. b3 {[%clk 0:02:55]}  O-O {[%clk 0:02:54]} 9. Be3 {[%clk 0:02:54]}  f5 {[%clk 0:02:54]} 10. Ng5 {[%clk 0:02:49]}  Bd7 {[%clk 0:02:54]} 11. exf5 {[%clk 0:02:34]}  Bxf5 {[%clk 0:02:52]} 12. Bg2 {[%clk 0:02:30]}  h6 {[%clk 0:02:50]} 13. Ne4 {[%clk 0:02:29]}  Qd7 {[%clk 0:02:49]} 14. Qd2 {[%clk 0:02:28]}  Bh3 {[%clk 0:02:48]} 15. O-O-O {[%clk 0:02:27]}  Bxg2 {[%clk 0:02:46]} 16. Qxg2 {[%clk 0:02:27]}  a5 {[%clk 0:02:47]} 17. g4 {[%clk 0:02:15]}  a4 {[%clk 0:02:47]} 18. b4 {[%clk 0:02:15]}  Qe6 {[%clk 0:02:47]} 19. Qe2 {[%clk 0:02:07]}  Qf7 {[%clk 0:02:15]} 20. Rdf1 {[%clk 0:02:04]}  d5 {[%clk 0:02:14]} 21. cxd5 {[%clk 0:01:56]}  Nxd5 {[%clk 0:02:15]} 22. Bd2 {[%clk 0:01:56]}  Ndxb4 {[%clk 0:02:12]} 23. cxb4 {[%clk 0:01:52]}  Qxa2 {[%clk 0:02:13]} 24. Qd3 {[%clk 0:01:34]}  Nd4 {[%clk 0:02:09]} 25. Nc5 {[%clk 0:01:27]}  b6 {[%clk 0:02:08]} 26. Qb1 {[%clk 0:00:45]}  Ne2+ {[%clk 0:01:58]} 0-1


[Site "https://www.chess.com"]

[Event "Titled Tuesday Blitz May 9 Late 2023"]
[White "Mortazavi, Ali"]
[Black "StarkyNZ"]
[WhiteFideId "401323"]
[WhiteElo "2339"]
[BlackElo "2258"]
[Result "1-0"]
[Round "01"]
[TimeControl "180+2"]
[Date "2023.05.09"]
[WhiteClock "0:00:36"]
[BlackClock "0:00:02"]

1. Nf3 {[%clk 0:03:00]}  b6 {[%clk 0:02:59]} 2. g3 {[%clk 0:03:00]}  Bb7 {[%clk 0:02:59]} 3. Bg2 {[%clk 0:03:01]}  e6 {[%clk 0:03:00]} 4. O-O {[%clk 0:03:02]}  Nf6 {[%clk 0:03:00]} 5. d3 {[%clk 0:03:03]}  d6 {[%clk 0:03:01]} 6. e4 {[%clk 0:03:03]}  Nbd7 {[%clk 0:03:01]} 7. a4 {[%clk 0:03:03]}  a6 {[%clk 0:03:01]} 8. Nc3 {[%clk 0:03:02]}  Be7 {[%clk 0:03:02]} 9. Re1 {[%clk 0:03:02]}  O-O {[%clk 0:03:01]} 10. d4 {[%clk 0:02:56]}  c5 {[%clk 0:03:00]} 11. e5 {[%clk 0:02:45]}  dxe5 {[%clk 0:02:58]} 12. dxe5 {[%clk 0:02:44]}  Nd5 {[%clk 0:02:56]} 13. Ne4 {[%clk 0:02:34]}  c4 {[%clk 0:02:52]} 14. Bg5 {[%clk 0:02:10]}  h6 {[%clk 0:02:43]} 15. Bxe7 {[%clk 0:02:10]}  Qxe7 {[%clk 0:02:36]} 16. Qe2 {[%clk 0:01:53]}  b5 {[%clk 0:02:31]} 17. a5 {[%clk 0:01:41]}  Nc5 {[%clk 0:02:23]} 18. Nd6 {[%clk 0:01:40]}  Rad8 {[%clk 0:02:20]} 19. Nd4 {[%clk 0:01:37]}  Ba8 {[%clk 0:02:17]} 20. f4 {[%clk 0:01:16]}  g6 {[%clk 0:01:24]} 21. h4 {[%clk 0:01:16]}  h5 {[%clk 0:01:20]} 22. Kh2 {[%clk 0:01:16]}  Rxd6 {[%clk 0:01:13]} 23. exd6 {[%clk 0:01:16]}  Qxd6 {[%clk 0:01:14]} 24. Rad1 {[%clk 0:01:12]}  Qc7 {[%clk 0:01:11]} 25. Qe5 {[%clk 0:01:01]}  Qxa5 {[%clk 0:01:04]} 26. f5 {[%clk 0:01:00]}  Nd7 {[%clk 0:00:25]} 27. Qd6 {[%clk 0:00:55]}  N7f6 {[%clk 0:00:16]} 28. fxe6 {[%clk 0:00:55]}  Ng4+ {[%clk 0:00:16]} 29. Kg1 {[%clk 0:00:54]}  Rd8 {[%clk 0:00:11]} 30. exf7+ {[%clk 0:00:47]}  Kxf7 {[%clk 0:00:12]} 31. Qe6+ {[%clk 0:00:47]}  Kg7 {[%clk 0:00:11]} 32. c3 {[%clk 0:00:42]}  Qc7 {[%clk 0:00:11]} 33. Qxg4 {[%clk 0:00:35]}  hxg4 {[%clk 0:00:05]} 34. Ne6+ {[%clk 0:00:35]}  Kf6 {[%clk 0:00:05]} 35. Nxc7 {[%clk 0:00:36]}  Nxc7 {[%clk 0:00:05]} 36. Rxd8 {[%clk 0:00:35]}  Bxg2 {[%clk 0:00:04]} 37. Kxg2 {[%clk 0:00:36]}  Ne6 {[%clk 0:00:02]} 38. Rd6 {[%clk 0:00:36]} 1-0


[Site "https://www.chess.com"]

[Event "Titled Tuesday Blitz May 9 Late 2023"]
[White "Boder, Jan"]
[Black "Lorenzo De La Riva, Lazaro"]
[WhiteFideId "16243226"]
[BlackFideId "2268809"]
[WhiteElo "2241"]
[BlackElo "2294"]
[Result "1-0"]
[Round "01"]
[TimeControl "180+2"]
[Date "2023.05.09"]
[WhiteClock "0:00:04"]
[BlackClock "0:00:23"]

1. c4 {[%clk 0:02:56]}  Nf6 {[%clk 0:02:59]} 2. g3 {[%clk 0:02:54]}  e6 {[%clk 0:02:59]} 3. Bg2 {[%clk 0:02:54]}  d5 {[%clk 0:03:00]} 4. Nf3 {[%clk 0:02:53]}  Be7 {[%clk 0:02:59]} 5. O-O {[%clk 0:02:53]}  O-O {[%clk 0:03:00]} 6. d4 {[%clk 0:02:51]}  c6 {[%clk 0:03:00]} 7. Nc3 {[%clk 0:02:50]}  b6 {[%clk 0:03:00]} 8. b3 {[%clk 0:02:49]}  a5 {[%clk 0:02:59]} 9. Qd3 {[%clk 0:02:46]}  Ba6 {[%clk 0:02:59]} 10. e4 {[%clk 0:02:44]}  b5 {[%clk 0:02:57]} 11. Ne5 {[%clk 0:02:00]}  bxc4 {[%clk 0:02:51]} 12. bxc4 {[%clk 0:02:00]}  Nfd7 {[%clk 0:02:50]} 13. exd5 {[%clk 0:01:29]}  cxd5 {[%clk 0:02:45]} 14. Rd1 {[%clk 0:01:12]}  Nxe5 {[%clk 0:02:37]} 15. dxe5 {[%clk 0:01:13]}  Bxc4 {[%clk 0:02:36]} 16. Qxc4 {[%clk 0:01:06]}  dxc4 {[%clk 0:02:30]} 17. Rxd8 {[%clk 0:01:04]}  Rxd8 {[%clk 0:02:22]} 18. Bxa8 {[%clk 0:01:04]}  Nd7 {[%clk 0:02:23]} 19. Be4 {[%clk 0:00:54]}  Nxe5 {[%clk 0:02:23]} 20. Be3 {[%clk 0:00:45]}  Nd3 {[%clk 0:02:18]} 21. Bb6 {[%clk 0:00:37]}  Rc8 {[%clk 0:02:15]} 22. Bxa5 {[%clk 0:00:37]}  f5 {[%clk 0:02:14]} 23. Bxd3 {[%clk 0:00:26]}  cxd3 {[%clk 0:02:13]} 24. Rd1 {[%clk 0:00:27]}  Ra8 {[%clk 0:02:12]} 25. Bb6 {[%clk 0:00:23]}  Bf6 {[%clk 0:01:59]} 26. Rxd3 {[%clk 0:00:22]}  Ra3 {[%clk 0:01:59]} 27. Bd8 {[%clk 0:00:09]}  Rxc3 {[%clk 0:01:47]} 28. Rxc3 {[%clk 0:00:10]}  Bxc3 {[%clk 0:01:48]} 29. a4 {[%clk 0:00:11]}  Kf7 {[%clk 0:01:11]} 30. a5 {[%clk 0:00:10]}  Ke8 {[%clk 0:01:12]} 31. Bb6 {[%clk 0:00:03]}  Kd7 {[%clk 0:01:10]} 32. a6 {[%clk 0:00:03]}  Kc6 {[%clk 0:01:06]} 33. a7 {[%clk 0:00:03]}  Kb7 {[%clk 0:01:05]} 34. Be3 {[%clk 0:00:03]}  e5 {[%clk 0:01:02]} 35. f4 {[%clk 0:00:04]}  e4 {[%clk 0:00:56]} 36. Kf2 {[%clk 0:00:04]}  h6 {[%clk 0:00:44]} 37. h3 {[%clk 0:00:04]}  g5 {[%clk 0:00:44]} 38. fxg5 {[%clk 0:00:04]}  hxg5 {[%clk 0:00:45]} 39. Ke2 {[%clk 0:00:04]}  f4 {[%clk 0:00:42]} 40. gxf4 {[%clk 0:00:05]}  gxf4 {[%clk 0:00:42]} 41. Bxf4 {[%clk 0:00:05]}  Kxa7 {[%clk 0:00:42]} 42. Ke3 {[%clk 0:00:06]}  Kb7 {[%clk 0:00:39]} 43. Kxe4 {[%clk 0:00:07]}  Kc6 {[%clk 0:00:37]} 44. Kf5 {[%clk 0:00:06]}  Kd7 {[%clk 0:00:37]} 45. Kg6 {[%clk 0:00:06]}  Ke8 {[%clk 0:00:36]} 46. h4 {[%clk 0:00:06]}  Kf8 {[%clk 0:00:36]} 47. h5 {[%clk 0:00:06]}  Kg8 {[%clk 0:00:34]} 48. h6 {[%clk 0:00:06]}  Kh8 {[%clk 0:00:34]} 49. Bd6 {[%clk 0:00:03]}  Bd4 {[%clk 0:00:33]} 50. Bf8 {[%clk 0:00:03]}  Bc3 {[%clk 0:00:28]} 51. Bg7+ {[%clk 0:00:02]}  Bxg7 {[%clk 0:00:28]} 52. hxg7+ {[%clk 0:00:03]}  Kg8 {[%clk 0:00:28]} 53. Kh6 {[%clk 0:00:03]}  Kf7 {[%clk 0:00:23]} 54. Kh7 {[%clk 0:00:04]} 1-0


[Site "https://www.chess.com"]

[Event "Titled Tuesday Blitz May 9 Late 2023"]
[White "Bruedigam, Martin"]
[Black "Leschinsky, Gary"]
[WhiteFideId "24608033"]
[BlackFideId "30951321"]
[WhiteElo "2331"]
[BlackElo "1855"]
[Result "0-1"]
[Round "01"]
[TimeControl "180+2"]
[Date "2023.05.09"]
[WhiteClock "0:00:11"]
[BlackClock "0:01:16"]

1. d4 {[%clk 0:02:59]}  Nf6 {[%clk 0:02:59]} 2. c4 {[%clk 0:02:59]}  e6 {[%clk 0:02:59]} 3. Nc3 {[%clk 0:03:00]}  Bb4 {[%clk 0:02:59]} 4. Bd2 {[%clk 0:03:00]}  O-O {[%clk 0:02:57]} 5. Nf3 {[%clk 0:02:59]}  d5 {[%clk 0:02:53]} 6. e3 {[%clk 0:02:59]}  c5 {[%clk 0:02:46]} 7. a3 {[%clk 0:02:58]}  Bxc3 {[%clk 0:02:46]} 8. Bxc3 {[%clk 0:02:59]}  Ne4 {[%clk 0:02:45]} 9. Rc1 {[%clk 0:02:59]}  Nxc3 {[%clk 0:02:45]} 10. Rxc3 {[%clk 0:02:58]}  cxd4 {[%clk 0:02:46]} 11. Nxd4 {[%clk 0:02:56]}  e5 {[%clk 0:02:44]} 12. Nf3 {[%clk 0:02:51]}  d4 {[%clk 0:02:44]} 13. exd4 {[%clk 0:02:46]}  e4 {[%clk 0:02:43]} 14. Ne5 {[%clk 0:02:38]}  Re8 {[%clk 0:02:40]} 15. Be2 {[%clk 0:02:37]}  f6 {[%clk 0:02:22]} 16. Ng4 {[%clk 0:02:36]}  Nc6 {[%clk 0:02:21]} 17. d5 {[%clk 0:02:31]}  Bxg4 {[%clk 0:02:17]} 18. Bxg4 {[%clk 0:02:14]}  Ne5 {[%clk 0:02:16]} 19. Be6+ {[%clk 0:02:13]}  Kh8 {[%clk 0:02:17]} 20. O-O {[%clk 0:02:12]}  g6 {[%clk 0:02:17]} 21. Qd2 {[%clk 0:01:54]}  Rxe6 {[%clk 0:02:15]} 22. Qd4 {[%clk 0:01:40]}  Re8 {[%clk 0:02:15]} 23. c5 {[%clk 0:01:36]}  Rc8 {[%clk 0:02:07]} 24. b4 {[%clk 0:01:36]}  Qd7 {[%clk 0:02:00]} 25. Qxe4 {[%clk 0:01:31]}  Kg7 {[%clk 0:01:59]} 26. h3 {[%clk 0:01:26]}  Rcd8 {[%clk 0:01:59]} 27. Rd1 {[%clk 0:01:23]}  Nf7 {[%clk 0:01:59]} 28. Qd4 {[%clk 0:01:15]}  Qf5 {[%clk 0:01:59]} 29. d6 {[%clk 0:01:09]}  Qe5 {[%clk 0:01:51]} 30. a4 {[%clk 0:00:56]}  Rd7 {[%clk 0:01:41]} 31. Qc4 {[%clk 0:00:47]}  Qe6 {[%clk 0:01:37]} 32. Qb5 {[%clk 0:00:43]}  a6 {[%clk 0:01:31]} 33. Qd3 {[%clk 0:00:37]}  Ne5 {[%clk 0:01:31]} 34. Qd4 {[%clk 0:00:36]}  Nc6 {[%clk 0:01:30]} 35. Qf4 {[%clk 0:00:33]}  Qe5 {[%clk 0:01:19]} 36. Qxe5 {[%clk 0:00:30]}  fxe5 {[%clk 0:01:19]} 37. b5 {[%clk 0:00:25]}  axb5 {[%clk 0:01:16]} 38. axb5 {[%clk 0:00:26]}  Nd4 {[%clk 0:01:16]} 39. f4 {[%clk 0:00:11]}  Ne2+ {[%clk 0:01:16]} 0-1


[Site "https://www.chess.com"]

[Event "Titled Tuesday Blitz May 9 Late 2023"]
[White "Spitzl, Vinzent"]
[Black "Smith, Garrett L"]
[WhiteFideId "12901253"]
[BlackFideId "2024829"]
[WhiteElo "2225"]
[BlackElo "2229"]
[Result "0-1"]
[Round "01"]
[TimeControl "180+2"]
[Date "2023.05.09"]
[WhiteClock "0:00:36"]
[BlackClock "0:01:12"]

1. e4 {[%clk 0:02:57]}  c5 {[%clk 0:02:59]} 2. Nf3 {[%clk 0:02:54]}  Nc6 {[%clk 0:02:59]} 3. d4 {[%clk 0:02:53]}  cxd4 {[%clk 0:03:00]} 4. Nxd4 {[%clk 0:02:54]}  e5 {[%clk 0:03:01]} 5. Nb5 {[%clk 0:02:52]}  d6 {[%clk 0:03:01]} 6. N1c3 {[%clk 0:02:51]}  a6 {[%clk 0:03:01]} 7. Na3 {[%clk 0:02:52]}  Be7 {[%clk 0:03:01]} 8. Be3 {[%clk 0:02:50]}  Nf6 {[%clk 0:03:01]} 9. f3 {[%clk 0:02:48]}  O-O {[%clk 0:02:50]} 10. Nc4 {[%clk 0:02:45]}  Be6 {[%clk 0:02:43]} 11. Nb6 {[%clk 0:02:43]}  Rb8 {[%clk 0:02:44]} 12. Nbd5 {[%clk 0:02:43]}  b5 {[%clk 0:02:40]} 13. Be2 {[%clk 0:02:40]}  b4 {[%clk 0:02:39]} 14. Nxf6+ {[%clk 0:02:40]}  Bxf6 {[%clk 0:02:39]} 15. Nd5 {[%clk 0:02:40]}  Bxd5 {[%clk 0:02:33]} 16. Qxd5 {[%clk 0:02:39]}  Nd4 {[%clk 0:01:56]} 17. Bxd4 {[%clk 0:02:27]}  exd4 {[%clk 0:01:57]} 18. Bxa6 {[%clk 0:02:27]}  d3 {[%clk 0:01:55]} 19. cxd3 {[%clk 0:02:26]}  Bxb2 {[%clk 0:01:55]} 20. Rb1 {[%clk 0:02:26]}  Bc3+ {[%clk 0:01:54]} 21. Ke2 {[%clk 0:02:22]}  Ra8 {[%clk 0:01:45]} 22. Bc4 {[%clk 0:02:21]}  Ra5 {[%clk 0:01:44]} 23. Qc6 {[%clk 0:02:06]}  Qg5 {[%clk 0:01:41]} 24. Kf1 {[%clk 0:01:27]}  Qd2 {[%clk 0:01:27]} 25. Qb6 {[%clk 0:01:00]}  Rc5 {[%clk 0:01:21]} 26. Qxd6 {[%clk 0:00:56]}  Rxc4 {[%clk 0:01:19]} 27. Qd5 {[%clk 0:00:39]}  Rd4 {[%clk 0:01:18]} 28. Qb5 {[%clk 0:00:36]}  Qc2 {[%clk 0:01:12]} 0-1


[Site "https://www.chess.com"]

[Event "Titled Tuesday Blitz May 9 Late 2023"]
[White "Palacio,Igor Da Paz"]
[Black "Reprintsev, Alexander"]
[WhiteFideId "2121140"]
[BlackFideId "14100541"]
[WhiteElo "2126"]
[BlackElo "2218"]
[Result "1-0"]
[Round "01"]
[TimeControl "180+2"]
[Date "2023.05.09"]
[WhiteClock "0:00:40"]
[BlackClock "0:00:58"]

1. e4 {[%clk 0:02:59]}  d5 {[%clk 0:02:57]} 2. exd5 {[%clk 0:02:58]}  Qxd5 {[%clk 0:02:55]} 3. Nc3 {[%clk 0:02:59]}  Qa5 {[%clk 0:02:51]} 4. d4 {[%clk 0:02:59]}  Nf6 {[%clk 0:02:46]} 5. Bc4 {[%clk 0:02:54]}  Nc6 {[%clk 0:02:38]} 6. Bd2 {[%clk 0:02:44]}  Nxd4 {[%clk 0:02:17]} 7. Nb5 {[%clk 0:02:05]}  Qb6 {[%clk 0:02:16]} 8. Be3 {[%clk 0:02:01]}  e5 {[%clk 0:02:14]} 9. Nxd4 {[%clk 0:01:58]}  exd4 {[%clk 0:02:13]} 10. Qxd4 {[%clk 0:01:56]}  Qxd4 {[%clk 0:01:59]} 11. Bxd4 {[%clk 0:01:57]}  Be7 {[%clk 0:01:58]} 12. Nf3 {[%clk 0:01:51]}  O-O {[%clk 0:01:57]} 13. O-O {[%clk 0:01:50]}  Bf5 {[%clk 0:01:54]} 14. c3 {[%clk 0:01:49]}  c5 {[%clk 0:01:51]} 15. Be3 {[%clk 0:01:41]}  Rad8 {[%clk 0:01:38]} 16. h3 {[%clk 0:01:36]}  a6 {[%clk 0:01:36]} 17. a4 {[%clk 0:01:32]}  Bd3 {[%clk 0:01:33]} 18. Bxd3 {[%clk 0:01:29]}  Rxd3 {[%clk 0:01:33]} 19. Rfd1 {[%clk 0:01:26]}  Rfd8 {[%clk 0:01:30]} 20. Rxd3 {[%clk 0:01:23]}  Rxd3 {[%clk 0:01:29]} 21. Kf1 {[%clk 0:01:22]}  Nd5 {[%clk 0:01:29]} 22. Ke2 {[%clk 0:01:15]}  c4 {[%clk 0:01:28]} 23. Ne5 {[%clk 0:01:08]}  Nxe3 {[%clk 0:01:17]} 24. Nxd3 {[%clk 0:01:07]}  Nc2 {[%clk 0:01:17]} 25. Rc1 {[%clk 0:00:40]}  cxd3+ {[%clk 0:00:58]} 26. Kxd3 {[%clk 0:00:40]} 1-0


[Site "https://www.chess.com"]